bitfinex/quotes_SOLUSD_20230120
["timestamp","ask_amount","ask_price","bid_price","bid_amount"]
[1674211366384,20.0,21.097,21.083,10.0]
[1674211366609,20.0,21.097,21.084,35.58]
[1674211367005,20.0,21.097,21.085,10.0]
[1674211367220,20.0,21.097,21.087,10.0]
[1674211367438,1.92,21.096,21.087,10.0]
[1674211373757,20.0,21.097,21.087,10.0]
[1674211373943,55.55,21.097,21.087,10.0]
[1674211374153,20.0,21.097,21.087,10.0]
[1674211374697,20.0,21.097,21.085,10.0]
[1674211374920,54.48,21.096,21.083,10.0]
[1674211381115,10.0,21.095,21.081,45.58]
[1674211381330,37.48,21.094,21.081,45.58]
[1674211381535,1.92,21.094,21.081,45.58]
[1674211383425,18.92,21.094,21.081,45.58]
[1674211383946,18.92,21.094,21.081,35.58]
[1674211384149,52.56,21.093,21.078,45.59]
[1674211384360,1.92,21.092,21.078,45.59]
[1674211384585,18.92,21.092,21.08,15.19]
[1674211384984,1.92,21.092,21.08,15.19]
[1674211385743,1.92,21.092,21.081,10.0]
[1674211387626,1.92,21.092,21.08,15.19]
[1674211387823,1.92,21.092,21.077,35.59]
[1674211388036,15.33,21.09,21.076,88.3844]
[1674211388240,18.92,21.089,21.077,30.0]
[1674211389402,18.92,21.089,21.078,10.0]
[1674211389624,35.57,21.089,21.078,10.0]
[1674211389827,35.56,21.092,21.078,10.0]
[1674211390355,35.56,21.092,21.078,45.59]
[1674211391414,18.92,21.091,21.078,45.59]
[1674211393921,18.92,21.091,21.078,10.0]
[1674211395289,1.92,21.091,21.078,10.0]
[1674211395802,18.92,21.091,21.078,10.0]
[1674211396433,1.92,21.091,21.078,10.0]
[1674211396958,18.92,21.091,21.078,10.0]
[1674211397602,1.92,21.091,21.078,10.0]
[1674211398036,18.92,21.091,21.078,10.0]
[1674211398443,1.92,21.091,21.078,10.0]
[1674211399192,35.56,21.092,21.08,25.33]
[1674211399389,35.56,21.095,21.08,25.33]
[1674211400027,10.0,21.094,21.08,10.0]
[1674211400242,35.56,21.093,21.08,10.0]
[1674211400457,18.92,21.092,21.078,10.0]
[1674211400771,35.56,21.091,21.078,10.0]
[1674211400950,18.92,21.09,21.078,10.0]
[1674211401499,1.92,21.09,21.078,10.0]
[1674211401712,1.92,21.09,21.079,35.58]
[1674211401918,1.92,21.09,21.08,10.0]
[1674211408873,11.92,21.09,21.077,65.59]
[1674211409080,17.0,21.089,21.078,10.0]
[1674211409293,1.92,21.088,21.078,10.0]
[1674211409501,0.96,21.087,21.078,10.0]
[1674211409699,0.96,21.086,21.078,10.0]
[1674211411401,0.96,21.09,21.078,45.59]
[1674211411609,5.15605,21.092,21.08,15.19]
[1674211411810,35.56,21.096,21.081,27.0]
[1674211412005,35.56,21.096,21.082,10.0]
[1674211413168,0.96,21.095,21.082,10.0]
[1674211413378,0.96,21.094,21.082,10.0]
[1674211413595,0.96,21.093,21.082,10.0]
[1674211413807,0.96,21.092,21.082,10.0]
[1674211414003,35.55,21.098,21.083,17.0]
[1674211414231,35.55,21.098,21.084,20.0]
[1674211414425,35.55,21.1,21.085,52.57]
[1674211414765,35.54,21.104,21.087,10.0]
[1674211414960,35.54,21.104,21.087,45.57]
[1674211415693,35.54,21.104,21.087,162.4098]
[1674211416020,17.96,21.103,21.087,162.4098]
[1674211416220,36.5,21.102,21.087,162.4098]
[1674211416433,17.96,21.101,21.087,162.4098]
[1674211416643,0.96,21.1,21.087,162.4098]
[1674211416855,0.96,21.099,21.087,162.4098]
[1674211417183,0.96,21.098,21.087,162.4098]
[1674211421684,0.96,21.099,21.087,162.4098]
[1674211422021,35.54,21.106,21.087,162.4098]
[1674211422342,35.54,21.107,21.09,15.21]
[1674211422543,35.54,21.107,21.091,52.56]
[1674211422872,35.54,21.107,21.092,10.0]
[1674211423684,18.92,21.106,21.092,10.0]
[1674211430660,35.54,21.105,21.092,10.0]
[1674211430873,1.92,21.104,21.092,10.0]
[1674211431176,131.0727,21.12,21.093,56.52]
[1674211431389,5.15605,21.119,21.1,15.31]
[1674211431579,5.15605,21.119,21.101,52.55]
[1674211431797,35.52,21.118,21.102,10.0]
[1674211432000,35.52,21.118,21.102,32.73160316]
[1674211432229,35.52,21.118,21.103,22.73160316]
[1674211432425,35.52,21.118,21.103,75.24986101]
[1674211432643,20.0,21.117,21.104,10.0]
[1674211432859,20.0,21.117,21.104,49.70986101]
[1674211433073,20.0,21.117,21.105,39.70986101]
[1674211433390,20.0,21.117,21.106,64.44125757]
[1674211433698,20.0,21.117,21.107,39.70986101]
[1674211433916,20.0,21.117,21.108,10.0]
[1674211434110,1.92,21.116,21.108,10.0]
[1674211434325,1.92,21.116,21.108,49.69713861]
[1674211434528,1.92,21.116,21.108,39.69713861]
[1674211434743,1.92,21.116,21.108,54.44125757]
[1674211434956,18.92,21.116,21.108,54.44125757]
[1674211435359,35.52,21.115,21.1,35.55]
[1674211435580,10.0,21.113,21.099,45.55]
[1674211435912,0.96,21.112,21.099,45.55]
[1674211436107,0.96,21.111,21.099,45.55]
[1674211436319,0.96,21.11,21.099,45.55]
[1674211436734,0.96,21.109,21.099,10.0]
[1674211444856,0.96,21.109,21.101,10.0]
[1674211445161,0.96,21.109,21.102,39.13095394]
[1674211446108,35.53,21.112,21.102,39.13095394]
[1674211446324,35.52,21.115,21.102,39.13095394]
[1674211446532,35.52,21.115,21.103,10.0]
[1674211446925,35.52,21.115,21.104,39.13095394]
[1674211447448,1.92,21.114,21.104,39.13095394]
[1674211447988,10.0,21.112,21.104,39.13095394]
[1674211448201,1.92,21.111,21.104,39.13095394]
[1674211454825,11.92,21.111,21.099,10.0]
[1674211455032,17.0,21.11,21.098,119.8746]
[1674211455247,1.92,21.109,21.098,119.8746]
[1674211455674,1.92,21.109,21.098,157.13268728]
[1674211456303,1.92,21.109,21.099,10.0]
[1674211456644,1.92,21.109,21.098,157.13268728]
[1674211456930,1.92,21.109,21.099,37.25808728]
[1674211457141,1.92,21.109,21.1,10.0]
[1674211457357,1.92,21.109,21.099,37.25808728]
[1674211457668,1.92,21.109,21.1,10.0]
[1674211458821,1.92,21.109,21.1,47.25808728]
[1674211459859,1.92,21.109,21.098,109.8746]
[1674211462487,1.92,21.109,21.097,35.55]
[1674211464293,7.07605,21.109,21.095,35.56]
[1674211464475,17.0,21.108,21.097,20.0]
[1674211464691,10.0,21.106,21.093,10.0]
[1674211464906,35.54,21.105,21.093,10.0]
[1674211465119,18.92,21.104,21.093,10.0]
[1674211466828,1.92,21.104,21.093,10.0]
[1674211470699,5.15605,21.107,21.094,55.56]
[1674211471026,35.52,21.115,21.095,44.31142061]
[1674211471354,5.15605,21.114,21.097,10.0]
[1674211471556,35.52,21.117,21.098,52.55]
[1674211471745,116.0433,21.119,21.1,15.32]
[1674211471746,45.52,21.118,21.1,15.32]
[1674211471956,45.52,21.118,21.102,10.0]
[1674211472281,20.0,21.117,21.104,10.0]
[1674211472799,0.96,21.116,21.104,10.0]
[1674211473003,0.96,21.115,21.104,10.0]
[1674211473209,0.96,21.114,21.104,10.0]
[1674211473639,0.96,21.113,21.104,10.0]
[1674211473852,0.96,21.112,21.104,10.0]
[1674211490175,0.96,21.112,21.103,35.54]
[1674211490387,0.96,21.111,21.103,35.54]
[1674211491197,20.0,21.117,21.103,35.54]
[1674211491410,20.0,21.117,21.104,10.0]
[1674211491620,10.0,21.117,21.105,35.54]
[1674211491842,55.52,21.118,21.105,35.54]
[1674211492054,55.52,21.118,21.106,10.0]
[1674211492269,10.0,21.117,21.106,10.0]
[1674211492481,18.92,21.116,21.106,10.0]
[1674211493092,18.92,21.116,21.104,10.0]
[1674211493952,10.0,21.115,21.103,35.54]
[1674211494167,18.92,21.114,21.102,10.0]
[1674211494898,35.52,21.116,21.102,10.0]
[1674211495211,180.5347,21.13,21.104,10.0]
[1674211495427,10.0,21.128,21.105,35.54]
[1674211495633,59.57605,21.127,21.106,10.0]
[1674211495828,15.15605,21.126,21.108,10.0]
[1674211496036,10.0,21.124,21.108,10.0]
[1674211496264,10.0,21.122,21.108,10.0]
[1674211496581,53.47,21.121,21.108,10.0]
[1674211496894,0.96,21.12,21.108,10.0]
[1674211497107,0.96,21.119,21.108,10.0]
[1674211497311,0.96,21.118,21.108,10.0]
[1674211498481,0.96,21.119,21.108,10.0]
[1674211498695,0.96,21.12,21.108,10.0]
[1674211499000,0.96,21.119,21.108,10.0]
[1674211500675,35.51,21.123,21.109,15.66093625]
[1674211500885,35.51,21.124,21.11,10.0]
[1674211501095,35.51,21.125,21.11,10.0]
[1674211501291,35.51,21.125,21.112,10.0]
[1674211501503,35.51,21.125,21.111,15.66093625]
[1674211501712,10.0,21.124,21.111,15.66093625]
[1674211501923,35.51,21.123,21.111,15.66093625]
[1674211502679,18.92,21.122,21.111,15.66093625]
[1674211503393,18.92,21.122,21.11,10.0]
[1674211509832,35.51,21.123,21.11,10.0]
[1674211510046,35.51,21.123,21.11,25.66093625]
[1674211510231,35.51,21.123,21.11,61.19093625]
[1674211510668,35.51,21.123,21.11,25.66093625]
[1674211511416,35.51,21.123,21.11,40.98093625]
[1674211513093,35.51,21.124,21.123,0.06178424]
[1674211513282,18.92,21.124,21.123,0.06178424]
[1674211518485,1.92,21.124,21.123,0.06178424]
[1674211520577,55.5,21.127,21.123,0.06178424]
[1674211520786,20.0,21.127,21.123,0.06178424]
[1674211521202,20.0,21.128,21.123,0.06178424]
[1674211522155,18.92,21.127,21.123,0.06178424]
[1674211522782,54.42,21.127,21.123,0.06178424]
[1674211522993,18.92,21.127,21.123,0.06178424]
[1674211527200,1.92,21.127,21.123,0.06178424]
[1674211528122,21.92,21.127,21.123,0.06178424]
[1674211529912,20.0,21.127,21.123,0.06178424]
[1674211530238,20.0,21.129,21.123,0.06178424]
[1674211530452,18.92,21.128,21.123,0.06178424]
[1674211530768,20.0,21.127,21.123,0.06178424]
[1674211532320,1.92,21.126,21.123,0.06178424]
[1674211539384,11.92,21.126,21.123,0.06178424]
[1674211539606,0.01328297,21.123,21.115,45.52]
[1674211539803,0.01328297,21.123,21.115,10.0]
[1674211541043,0.01328297,21.123,21.114,25.66093625]
[1674211541255,0.01328297,21.123,21.114,10.0]
[1674211541472,0.01328297,21.123,21.113,10.0]
[1674211541700,17.01328297,21.123,21.112,51.19093625]
[1674211541914,1.92,21.122,21.11,35.53]
[1674211542224,11.92,21.122,21.109,163.2542]
[1674211542411,17.0,21.121,21.109,153.2542]
[1674211542627,1.92,21.12,21.109,117.7242]
[1674211543048,10.0,21.119,21.109,117.7242]
[1674211543258,18.92,21.118,21.109,117.7242]
[1674211544330,10.0,21.117,21.107,35.54]
[1674211544637,18.92,21.116,21.107,35.54]
[1674211544852,18.92,21.116,21.106,20.0]
[1674211546323,18.92,21.116,21.107,35.54]
[1674211546520,18.92,21.116,21.106,20.0]
[1674211551785,18.92,21.116,21.107,15.66093625]
[1674211553152,1.92,21.116,21.107,15.66093625]
[1674211553342,35.51,21.125,21.108,10.0]
[1674211553564,35.52328297,21.123,21.108,10.0]
[1674211553779,0.01328297,21.123,21.109,51.20093625]
[1674211554009,0.01328297,21.123,21.11,15.21]
[1674211554214,0.01328297,21.123,21.112,10.0]
[1674211554616,0.01328297,21.123,21.113,15.66093625]
[1674211554828,0.01328297,21.123,21.114,10.0]
[1674211555159,0.01328297,21.123,21.116,10.0]
[1674211555366,0.01328297,21.123,21.115,31.3218725]
[1674211555561,0.01328297,21.123,21.115,15.66093625]
[1674211555771,0.01328297,21.123,21.116,10.0]
[1674211558736,0.01328297,21.123,21.113,10.0]
[1674211558944,0.01328297,21.123,21.112,25.66093625]
[1674211559349,0.01328297,21.123,21.111,45.53]
[1674211559783,0.01328297,21.123,21.112,10.0]
[1674211560190,18.93328297,21.123,21.112,10.0]
[1674211560402,18.93328297,21.123,21.111,10.0]
[1674211560728,18.93328297,21.123,21.109,169.42313625]
[1674211560943,10.0,21.122,21.109,169.42313625]
[1674211561143,18.92,21.121,21.109,169.42313625]
[1674211563342,18.92,21.121,21.109,51.20093625]
[1674211563663,18.92,21.121,21.105,35.54]
[1674211563664,10.0,21.119,21.105,35.54]
[1674211563880,10.0,21.117,21.106,15.66093625]
[1674211564095,17.96,21.116,21.107,35.54]
[1674211564300,18.92,21.116,21.107,35.54]
[1674211564628,17.0,21.115,21.107,35.54]
[1674211564818,1.92,21.114,21.107,35.54]
[1674211565035,0.96,21.113,21.106,10.0]
[1674211565360,1.92,21.116,21.107,35.54]
[1674211565574,18.92,21.116,21.107,35.54]
[1674211566310,1.92,21.116,21.107,35.54]
[1674211566711,18.92,21.116,21.107,35.54]
[1674211567469,1.92,21.116,21.107,35.54]
[1674211567866,1.92,21.116,21.108,15.66093625]
[1674211571560,153.1925,21.122,21.108,15.66093625]
[1674211571781,18.92,21.121,21.109,45.54]
[1674211572083,0.96,21.121,21.11,25.66093625]
[1674211572609,0.01328297,21.123,21.111,15.66093625]
[1674211572823,0.01328297,21.123,21.112,10.0]
[1674211573666,0.01328297,21.123,21.114,10.0]
[1674211573877,18.93328297,21.123,21.113,15.66093625]
[1674211575353,18.93328297,21.123,21.111,35.53]
[1674211575668,18.93328297,21.123,21.111,51.65267561]
[1674211575859,18.93328297,21.123,21.112,10.0]
[1674211579867,35.51,21.122,21.109,109.1546]
[1674211580051,54.07605,21.121,21.105,45.54]
[1674211580382,10.0,21.119,21.105,45.54]
[1674211580597,38.92,21.118,21.105,45.54]
[1674211580791,38.92,21.118,21.105,61.66267561]
[1674211581424,38.92,21.118,21.106,16.12267561]
[1674211582051,10.0,21.117,21.106,16.12267561]
[1674211582260,18.92,21.116,21.105,45.54]
[1674211582695,1.92,21.116,21.105,45.54]
[1674211586369,1.92,21.116,21.106,16.12267561]
[1674211586582,1.92,21.116,21.107,35.54]
[1674211586787,1.92,21.116,21.107,10.0]
[1674211586996,1.92,21.116,21.108,16.12267561]
[1674211587206,1.92,21.116,21.107,10.0]
[1674211587433,1.92,21.116,21.108,16.12267561]
[1674211591860,1.92,21.116,21.108,15.62267561]
[1674211593447,17.0,21.117,21.108,16.12267561]
[1674211593751,142.6,21.139,21.108,16.12267561]
[1674211593752,35.51,21.125,21.11,15.21]
[1674211593963,20.0,21.127,21.111,35.53]
[1674211594164,20.0,21.127,21.111,61.65267561]
[1674211594487,20.0,21.127,21.112,16.12267561]
[1674211594804,20.0,21.127,21.114,10.0]
[1674211595124,20.0,21.127,21.115,16.09482774]
[1674211595306,20.0,21.127,21.116,10.0]
[1674211595749,20.0,21.127,21.117,16.09482774]
[1674211595938,20.0,21.127,21.118,10.0]
[1674211601844,35.5,21.133,21.118,10.0]
[1674211601845,10.0,21.132,21.118,10.0]
[1674211602039,35.5,21.131,21.118,10.0]
[1674211602472,10.0,21.13,21.118,10.0]
[1674211603522,35.5,21.131,21.118,10.0]
[1674211604243,10.0,21.13,21.118,10.0]
[1674211611516,35.5,21.131,21.118,10.0]
[1674211611829,10.0,21.132,21.118,10.0]
[1674211612668,10.0,21.137,21.119,51.61482774]
[1674211612978,35.49,21.138,21.12,145.43962774]
[1674211613188,20.0,21.137,21.121,35.52]
[1674211613407,20.0,21.137,21.122,10.0]
[1674211614779,18.92,21.136,21.122,10.0]
[1674211614980,35.49,21.135,21.123,35.51]
[1674211615196,18.92,21.134,21.122,10.0]
[1674211615609,1.92,21.134,21.122,10.0]
[1674211616143,35.49,21.136,21.122,26.09482774]
[1674211616673,20.0,21.137,21.123,35.51]
[1674211616881,20.0,21.137,21.124,10.0]
[1674211617099,20.0,21.139,21.125,35.51]
[1674211617491,20.0,21.139,21.126,10.0]
[1674211617930,17.96,21.138,21.126,10.0]
[1674211618138,20.0,21.137,21.126,10.0]
[1674211618355,0.96,21.136,21.126,10.0]
[1674211618557,0.96,21.135,21.126,10.0]
[1674211620346,0.96,21.135,21.128,10.0]
[1674211620548,0.96,21.135,21.127,35.51]
[1674211620757,0.96,21.135,21.126,10.0]
[1674211622746,0.96,21.135,21.125,35.51]
[1674211622970,0.96,21.134,21.124,10.0]
[1674211625292,0.96,21.133,21.124,10.0]
[1674211625502,0.96,21.132,21.124,10.0]
[1674211625815,0.96,21.131,21.124,10.0]
[1674211627707,17.0,21.136,21.125,35.51]
[1674211627889,1.92,21.135,21.125,35.51]
[1674211628104,1.92,21.135,21.126,10.0]
[1674211630563,1.92,21.135,21.127,35.51]
[1674211630773,1.92,21.135,21.125,35.51]
[1674211632774,1.92,21.135,21.126,10.0]
[1674211632980,20.0,21.139,21.127,35.51]
[1674211633210,20.0,21.139,21.128,10.0]
[1674211633413,0.96,21.138,21.129,35.5]
[1674211633609,0.96,21.139,21.128,10.0]
[1674211634469,0.96,21.138,21.128,10.0]
[1674211634672,37.96,21.138,21.128,10.0]
[1674211634988,0.96,21.137,21.128,10.0]
[1674211635206,0.96,21.136,21.128,10.0]
[1674211635625,0.96,21.135,21.128,10.0]
[1674211635837,0.96,21.135,21.129,35.5]
[1674211637410,0.96,21.135,21.128,10.0]
[1674211638047,0.96,21.134,21.128,10.0]
[1674211639112,0.96,21.135,21.128,10.0]
[1674211639325,0.96,21.137,21.128,10.0]
[1674211639642,0.96,21.136,21.128,10.0]
[1674211639825,0.96,21.135,21.128,10.0]
[1674211640037,20.0,21.138,21.128,10.0]
[1674211640260,15.32,21.15,21.128,10.0]
[1674211640467,15.32,21.15,21.13,15.32]
[1674211640685,164.9028,21.164,21.131,35.5]
[1674211640686,35.46,21.152,21.131,35.5]
[1674211641003,35.45,21.158,21.132,17.96]
[1674211641189,35.45,21.158,21.14,15.21]
[1674211641401,15.38,21.16,21.141,45.48]
[1674211641617,5.15605,21.158,21.141,45.48]
[1674211642246,5.15605,21.158,21.142,16.09482774]
[1674211642478,20.0,21.157,21.144,10.0]
[1674211642672,20.0,21.157,21.145,35.48]
[1674211642883,20.0,21.157,21.146,10.0]
[1674211643088,5.15605,21.158,21.146,10.0]
[1674211643645,17.96,21.157,21.146,10.0]
[1674211643818,18.92,21.157,21.145,35.48]
[1674211644994,50.83,21.16,21.145,35.48]
[1674211645183,20.0,21.159,21.146,10.0]
[1674211645393,20.0,21.159,21.147,35.47]
[1674211646027,20.0,21.159,21.146,10.0]
[1674211646235,18.92,21.158,21.146,10.0]
[1674211646447,20.0,21.157,21.145,35.48]
[1674211646664,18.92,21.156,21.145,35.48]
[1674211647199,20.0,21.157,21.146,10.0]
[1674211647425,20.0,21.159,21.146,10.0]
[1674211647612,20.0,21.16,21.147,35.47]
[1674211648247,0.96,21.159,21.147,35.47]
[1674211648571,0.96,21.158,21.147,35.47]
[1674211648755,0.96,21.158,21.148,10.0]
[1674211649196,20.96,21.158,21.148,10.0]
[1674211649391,17.96,21.157,21.148,10.0]
[1674211649599,0.96,21.156,21.148,10.0]
[1674211650127,0.96,21.156,21.147,35.47]
[1674211650543,17.0,21.157,21.147,35.47]
[1674211650773,20.0,21.158,21.148,10.0]
[1674211651091,20.0,21.16,21.148,10.0]
[1674211652362,20.0,21.16,21.147,35.47]
[1674211652568,10.0,21.159,21.147,35.47]
[1674211652890,20.0,21.158,21.147,35.47]
[1674211653200,20.0,21.16,21.148,10.0]
[1674211653385,1.92,21.159,21.148,10.0]
[1674211653806,21.92,21.159,21.148,10.0]
[1674211654226,45.45,21.158,21.143,35.48]
[1674211654438,27.07605,21.157,21.143,35.48]
[1674211654663,27.07605,21.157,21.142,109.9016]
[1674211654880,62.46,21.156,21.142,109.9016]
[1674211655086,1.92,21.155,21.142,109.9016]
[1674211659899,0.96,21.155,21.142,109.9016]
[1674211660239,20.0,21.157,21.143,45.48]
[1674211660427,20.0,21.157,21.144,10.0]
[1674211660638,20.0,21.159,21.145,35.48]
[1674211660850,20.0,21.159,21.146,10.0]
[1674211661193,20.0,21.159,21.147,35.47]
[1674211662764,10.0,21.158,21.145,35.48]
[1674211662950,37.96,21.157,21.145,35.48]
[1674211663477,0.96,21.156,21.145,35.48]
[1674211663687,0.96,21.155,21.145,35.48]
[1674211664844,0.96,21.155,21.146,10.0]
[1674211665057,0.96,21.155,21.147,35.47]
[1674211665374,0.96,21.154,21.145,35.48]
[1674211666095,20.0,21.157,21.145,35.48]
[1674211666320,1.92,21.156,21.146,10.0]
[1674211666560,1.92,21.156,21.147,35.47]
[1674211666764,18.92,21.156,21.145,35.48]
[1674211667479,18.92,21.156,21.143,45.48]
[1674211669806,1.92,21.156,21.143,45.48]
[1674211671912,11.92,21.156,21.143,45.48]
[1674211672222,17.0,21.155,21.143,45.48]
[1674211672440,1.92,21.154,21.143,35.48]
[1674211674643,1.92,21.154,21.144,10.0]
[1674211675267,20.0,21.159,21.146,10.0]
[1674211675465,20.0,21.159,21.147,35.47]
[1674211676537,0.96,21.158,21.147,35.47]
[1674211678015,10.96,21.157,21.147,35.47]
[1674211678229,17.96,21.156,21.145,35.48]
[1674211678424,0.96,21.155,21.145,35.48]
[1674211679367,17.96,21.156,21.145,35.48]
[1674211679696,0.96,21.156,21.145,35.48]
[1674211679907,17.0,21.158,21.146,10.0]
[1674211680118,21.92,21.157,21.147,35.47]
[1674211680305,17.0,21.156,21.147,35.47]
[1674211680634,1.92,21.155,21.147,35.47]
[1674211681048,11.92,21.155,21.147,35.47]
[1674211681251,11.92,21.155,21.143,10.0]
[1674211681252,17.0,21.154,21.144,35.48]
[1674211681459,1.92,21.153,21.145,10.0]
[1674211681669,20.0,21.157,21.145,10.0]
[1674211682013,0.96,21.156,21.147,10.0]
[1674211682198,17.0,21.156,21.147,10.0]
[1674211682533,0.96,21.157,21.147,10.0]
[1674211682534,0.96,21.155,21.147,10.0]
[1674211682745,20.96,21.157,21.147,10.0]
[1674211682928,17.0,21.156,21.147,10.0]
[1674211683140,1.92,21.155,21.146,35.47]
[1674211683350,17.0,21.156,21.146,35.47]
[1674211683999,1.92,21.155,21.146,35.47]
[1674211684742,1.92,21.155,21.144,35.48]
[1674211684936,11.92,21.155,21.144,35.48]
[1674211685149,17.0,21.154,21.144,35.48]
[1674211685351,1.92,21.153,21.144,35.48]
[1674211686198,1.92,21.153,21.142,145.3816]
[1674211687064,10.0,21.152,21.142,35.48]
[1674211687368,18.92,21.151,21.14,10.0]
[1674211687579,18.92,21.151,21.139,35.49]
[1674211687888,10.0,21.15,21.135,35.49]
[1674211688105,10.0,21.148,21.136,20.0]
[1674211688318,18.92,21.147,21.137,35.49]
[1674211688853,1.92,21.147,21.138,10.0]
[1674211689069,1.92,21.147,21.139,35.49]
[1674211689465,1.92,21.147,21.14,10.0]
[1674211690228,35.46,21.154,21.14,25.6194798]
[1674211690422,35.45,21.158,21.14,25.6194798]
[1674211690618,10.0,21.155,21.142,10.0]
[1674211691149,35.46,21.156,21.142,10.0]
[1674211691363,35.45,21.158,21.144,10.0]
[1674211692430,18.92,21.156,21.144,10.0]
[1674211693171,54.38,21.156,21.144,10.0]
[1674211696001,18.92,21.156,21.142,10.0]
[1674211696226,54.38,21.156,21.142,10.0]
[1674211698737,18.92,21.156,21.144,10.0]
[1674211700424,18.92,21.156,21.146,10.0]
[1674211702084,35.45,21.16,21.146,10.0]
[1674211702288,20.0,21.159,21.146,10.0]
[1674211702499,20.0,21.161,21.146,10.0]
[1674211702708,35.45,21.16,21.146,10.0]
[1674211702930,20.0,21.159,21.146,10.0]
[1674211703548,18.92,21.158,21.146,10.0]
[1674211703764,20.0,21.157,21.146,10.0]
[1674211704188,21.92,21.158,21.146,10.0]
[1674211706202,17.0,21.157,21.146,10.0]
[1674211706418,1.92,21.156,21.146,10.0]
[1674211707150,20.0,21.158,21.146,10.0]
[1674211707357,1.92,21.157,21.146,10.0]
[1674211707674,1.92,21.157,21.148,10.0]
[1674211712392,18.92,21.157,21.148,10.0]
[1674211712595,18.92,21.157,21.146,10.0]
[1674211714699,1.92,21.157,21.146,10.0]
[1674211715030,0.96,21.157,21.146,10.0]
[1674211715218,17.96,21.159,21.146,10.0]
[1674211715446,20.0,21.158,21.146,10.0]
[1674211715658,0.96,21.157,21.146,10.0]
[1674211716055,35.45,21.159,21.147,20.0]
[1674211716270,35.45,21.162,21.148,35.47]
[1674211716486,35.44,21.169,21.149,10.0]
[1674211716695,35.44,21.169,21.15,35.47]
[1674211716928,35.44,21.169,21.151,10.0]
[1674211717116,35.44,21.169,21.152,35.46]
[1674211717329,150.4352,21.169,21.153,10.0]
[1674211717552,10.0,21.168,21.153,10.0]
[1674211717868,35.44,21.167,21.153,10.0]
[1674211718077,17.96,21.163,21.153,10.0]
[1674211718289,35.44,21.167,21.153,10.0]